Workbook

Sheet Лист1
A1: Школа | C1: МБОУ "Данауровская НШ-ДС" | F1: Утвердил: | G1: должность | H1: директор
A2: Типовое примерное меню приготавливаемых блюд | G2: фамилия | H2: Н.Г.Нигматуллина
A3: Возрастная категория | E3: 7-11 лет | G3: дата | H3: 1 | I3: 1 | J3: 2024
H4: день | I4: месяц | J4: год
A5: Неделя | B5: День недели | C5: Прием пищи | D5: Раздел меню | E5: Блюда | F5: Вес блюда, г | G5: Белки | H5: Жиры | I5: Углеводы | J5: Калорийность | K5: № рецептуры | L5: Цена
A6: 1 | B6: 1 | C6: Завтрак | D6: гор.блюдо | E6: Каша гречневая рассыпчатая, мясо тушенное | F6: 250 | G6: 10.51 | H6: 11.03 | I6: 3.184 | J6: 196 | K6: 2226\303 | L6: 64.19
D8: гор.напиток | E8: Чай с сахаром | F8: 200 | G8: 0.17 | H8: 0.04 | I8: 25 | J8: 98.5 | K8: 491
D9: хлеб | E9: Хлеб пшеничный/ржаной | F9: 50 | G9: 2.9 | H9: 0.2 | I9: 20.1 | J9: 90.3 | K9: 573/574
D10: фрукты | E10: Яблоки | F10: 100 | G10: 0.3 | H10: 0.4 | I10: 8.1
D13: итого | F13: =SUM(F6:F12) -> 600 | G13: =SUM(G6:G12) -> 13.88 | H13: =SUM(H6:H12) -> 11.67 | I13: =SUM(I6:I12) -> 56.384 | J13: =SUM(J6:J12) -> 384.8 | K13: 40 | L13: =SUM(L6:L12) -> 64.19
A14: =A6 -> 1 | B14: =B6 -> 1 | C14: Обед | D14: закуска
D15: 1 блюдо
D16: 2 блюдо
D17: гарнир
D18: напиток
D19: хлеб бел.
D20: хлеб черн.
D23: итого | F23: =SUM(F14:F22) -> 0 | G23: =SUM(G14:G22) -> 0 | H23: =SUM(H14:H22) -> 0 | I23: =SUM(I14:I22) -> 0 | J23: =SUM(J14:J22) -> 0 | L23: =SUM(L14:L22) -> 0
A24: =A6 -> 1 | B24: =B6 -> 1 | C24: Итого за день: | F24: =F13+F23 -> 600 | G24: =G13+G23 -> 13.88 | H24: =H13+H23 -> 11.67 | I24: =I13+I23 -> 56.384 | J24: =J13+J23 -> 384.8 | L24: =L13+L23 -> 64.19
A25: 1 | B25: 2 | C25: Завтрак | D25: гор.блюдо | E25: Плов из говядины | F25: 260 | G25: 16.1 | H25: 13 | I25: 53.6 | J25: 381.5 | K25: 279/422/171 | L25: 64.19
D27: гор.напиток | E27: Какао с молоком | F27: 210 | G27: 0.2 | I27: 9 | J27: 38 | K27: 377
D28: хлеб | E28: Хлеб пшеничный | F28: 30 | G28: 1.5 | H28: 0.13 | I28: 9.7 | J28: 46.2 | K28: 573
D29: закуска | E29: Салат из свеклы отварной | F29: 120 | G29: 0.48 | H29: 0.48 | I29: 11.76 | J29: 53.28 | K29: пр
D32: итого | F32: =SUM(F25:F31) -> 620 | G32: =SUM(G25:G31) -> 18.28 | H32: =SUM(H25:H31) -> 13.61 | I32: =SUM(I25:I31) -> 84.06 | J32: =SUM(J25:J31) -> 518.98 | L32: =SUM(L25:L31) -> 64.19
A33: =A25 -> 1 | B33: =B25 -> 2 | C33: Обед | D33: закуска
D34: 1 блюдо
D35: 2 блюдо
D36: гарнир
D37: напиток
D38: хлеб бел.
D39: хлеб черн.
D42: итого | F42: =SUM(F33:F41) -> 0 | G42: =SUM(G33:G41) -> 0 | H42: =SUM(H33:H41) -> 0 | I42: =SUM(I33:I41) -> 0 | J42: =SUM(J33:J41) -> 0 | L42: =SUM(L33:L41) -> 0
A43: =A25 -> 1 | B43: =B25 -> 2 | C43: Итого за день: | F43: =F32+F42 -> 620 | G43: =G32+G42 -> 18.28 | H43: =H32+H42 -> 13.61 | I43: =I32+I42 -> 84.06 | J43: =J32+J42 -> 518.98 | L43: =L32+L42 -> 64.19
A44: 1 | B44: 3 | C44: Завтрак | D44: гор.блюдо | E44: Фрикадельки в соусе из говядины, макаронные изделия отварные | F44: 200 | G44: 11.8 | H44: 15 | I44: 41 | J44: 347 | K44: 175 | L44: 64.19
D46: гор.напиток | E46: Чай с лимоном | F46: 200 | G46: 4 | H46: 3 | I46: 21 | J46: 62 | K46: 62
D47: хлеб | E47: хлеб пшеничный\ржаной | F47: 60 | G47: 2.9 | H47: 0.2 | I47: 20.1 | J47: 90.3 | K47: пр/14
D48: фрукты | E48: Яблоко свежее | F48: 100 | G48: 0.48 | H48: 0.48 | I48: 11.76 | J48: 53.28 | K48: пр
D51: итого | F51: =SUM(F44:F50) -> 560 | G51: =SUM(G44:G50) -> 19.18 | H51: =SUM(H44:H50) -> 18.68 | I51: =SUM(I44:I50) -> 93.86 | J51: =SUM(J44:J50) -> 552.58 | L51: =SUM(L44:L50) -> 64.19
A52: =A44 -> 1 | B52: =B44 -> 3 | C52: Обед | D52: закуска
D53: 1 блюдо
D54: 2 блюдо
D55: гарнир
D56: напиток
D57: хлеб бел.
D58: хлеб черн.
D61: итого | F61: =SUM(F52:F60) -> 0 | G61: =SUM(G52:G60) -> 0 | H61: =SUM(H52:H60) -> 0 | I61: =SUM(I52:I60) -> 0 | J61: =SUM(J52:J60) -> 0 | L61: =SUM(L52:L60) -> 0
A62: =A44 -> 1 | B62: =B44 -> 3 | C62: Итого за день: | F62: =F51+F61 -> 560 | G62: =G51+G61 -> 19.18 | H62: =H51+H61 -> 18.68 | I62: =I51+I61 -> 93.86 | J62: =J51+J61 -> 552.58 | L62: =L51+L61 -> 64.19
A63: 1 | B63: 4 | C63: Завтрак | D63: гор.блюдо | E63: Котлеты рыбные,пюре картофельное | F63: 250 | G63: 21.66 | H63: 15.2 | I63: 89.16 | J63: 507.2 | K63: 220/326,334 | L63: 64.19
D65: гор.напиток | E65: Чай с сахаром | F65: 200 | G65: 0.2 | I65: 9.1 | J65: 36 | K65: 376
D66: хлеб
D67: закуска | E67: салат из свеклы отварной | F67: 60 | G67: 0.8 | H67: 0.8 | I67: 19.6 | J67: 88.4 | K67: пр
D70: итого | F70: =SUM(F63:F69) -> 510 | G70: =SUM(G63:G69) -> 22.66 | H70: =SUM(H63:H69) -> 16 | I70: =SUM(I63:I69) -> 117.86 | J70: =SUM(J63:J69) -> 631.6 | L70: =SUM(L63:L69) -> 64.19
A71: =A63 -> 1 | B71: =B63 -> 4 | C71: Обед | D71: закуска
D72: 1 блюдо
D73: 2 блюдо
D74: гарнир
D75: напиток
D76: хлеб бел.
D77: хлеб черн.
D80: итого | F80: =SUM(F71:F79) -> 0 | G80: =SUM(G71:G79) -> 0 | H80: =SUM(H71:H79) -> 0 | I80: =SUM(I71:I79) -> 0 | J80: =SUM(J71:J79) -> 0 | L80: =SUM(L71:L79) -> 0
A81: =A63 -> 1 | B81: =B63 -> 4 | C81: Итого за день: | F81: =F70+F80 -> 510 | G81: =G70+G80 -> 22.66 | H81: =H70+H80 -> 16 | I81: =I70+I80 -> 117.86 | J81: =J70+J80 -> 631.6 | L81: =L70+L80 -> 64.19
A82: 1 | B82: 5 | C82: Завтрак | D82: гор.блюдо | E82: Котлеты из птицы, рис отварной | F82: 250 | G82: 7.22 | H82: 14.53 | I82: 3.66 | J82: 174.35 | K82: 220 | L82: 64.19
D83: десерт
D84: гор.напиток | E84: кофейный напиток с молоком | F84: 200 | G84: 0.2 | I84: 9.1 | J84: 36 | K84: 36
D85: хлеб | E85: Хлеб пшеничный | F85: 50 | G85: 1.5 | H85: 0.13 | I85: 9.7 | J85: 46.2 | K85: 573
D86: фрукты | E86: яблоки | F86: 100 | G86: 1.3 | H86: 0.3 | I86: 12 | J86: 57
D89: итого | F89: =SUM(F82:F88) -> 600 | G89: =SUM(G82:G88) -> 10.22 | H89: =SUM(H82:H88) -> 14.96 | I89: =SUM(I82:I88) -> 34.46 | J89: =SUM(J82:J88) -> 313.55 | L89: =SUM(L82:L88) -> 64.19
A90: =A82 -> 1 | B90: =B82 -> 5 | C90: Обед | D90: закуска
D91: 1 блюдо
D92: 2 блюдо
D93: гарнир
D94: напиток
D95: хлеб бел.
D96: хлеб черн.
D99: итого | F99: =SUM(F90:F98) -> 0 | G99: =SUM(G90:G98) -> 0 | H99: =SUM(H90:H98) -> 0 | I99: =SUM(I90:I98) -> 0 | J99: =SUM(J90:J98) -> 0 | L99: =SUM(L90:L98) -> 0
A100: =A82 -> 1 | B100: =B82 -> 5 | C100: Итого за день: | F100: =F89+F99 -> 600 | G100: =G89+G99 -> 10.22 | H100: =H89+H99 -> 14.96 | I100: =I89+I99 -> 34.46 | J100: =J89+J99 -> 313.55 | L100: =L89+L99 -> 64.19
A101: 1 | B101: 1 | C101: Завтрак | D101: гор.блюдо | E101: Гуляш из говядины, пюре картофельное | F101: 260 | G101: 15.3 | H101: 15.3 | I101: 39.1 | J101: 352.5 | K101: 271/422/199 | L101: 64.19
D103: гор.напиток | E103: Чай с сахаром | F103: 210 | G103: 0.2 | I103: 9 | J103: 38 | K103: 377
D104: хлеб | E104: Хлеб пшеничный/ржаной | F104: 50 | G104: 2.5 | H104: 0.13 | I104: 18.9 | J104: 88.5 | K104: 573/574
D105: фрукты | E105: Яблоки | F105: 100 | G105: 1.3 | H105: 0.3 | I105: 12 | J105: 57
D108: итого | F108: =SUM(F101:F107) -> 620 | G108: =SUM(G101:G107) -> 19.3 | H108: =SUM(H101:H107) -> 15.73 | I108: =SUM(I101:I107) -> 79 | J108: =SUM(J101:J107) -> 536 | L108: =SUM(L101:L106) -> 64.19
A109: =A101 -> 1 | B109: =B101 -> 1 | C109: Обед | D109: закуска
D110: 1 блюдо
D111: 2 блюдо
D112: гарнир
D113: напиток
D114: хлеб бел.
D115: хлеб черн.
D118: итого | F118: =SUM(F109:F117) -> 0 | G118: =SUM(G109:G117) -> 0 | H118: =SUM(H109:H117) -> 0 | I118: =SUM(I109:I117) -> 0 | J118: =SUM(J109:J117) -> 0 | L118: =SUM(L109:L117) -> 0
A119: =A101 -> 1 | B119: 6 | C119: Итого за день: | F119: =F108+F118 -> 620 | G119: =G108+G118 -> 19.3 | H119: =H108+H118 -> 15.73 | I119: =I108+I118 -> 79 | J119: =J108+J118 -> 536 | L119: =L108+L118 -> 64.19
A120: 2 | B120: 2 | C120: Завтрак | D120: гор.блюдо | E120: Плов из мяса птицы | F120: 270 | G120: 9.98 | H120: 12.41 | I120: 36.67 | J120: 298.3 | K120: 101/422/234/149 | L120: 64.19
D122: гор.напиток | E122: Какао с молоком | F122: 200 | G122: 0.17 | H122: 0.04 | I122: 17.2 | J122: 98.5 | K122: 491
D123: хлеб | E123: Хлеб пшеничный/ржаной | F123: 40 | G123: 2.5 | H123: 0.13 | I123: 18.9 | J123: 88.5 | K123: 573/574
D124: фрукты | E124: Яблоки | F124: 100
D127: итого | F127: =SUM(F120:F126) -> 610 | G127: =SUM(G120:G126) -> 12.65 | H127: =SUM(H120:H126) -> 12.58 | I127: =SUM(I120:I126) -> 72.77 | J127: =SUM(J120:J126) -> 485.3 | L127: =SUM(L120:L126) -> 64.19
A128: =A120 -> 2 | B128: =B120 -> 2 | C128: Обед | D128: закуска
D129: 1 блюдо
D130: 2 блюдо
D131: гарнир
D132: напиток
D133: хлеб бел.
D134: хлеб черн.
D137: итого | F137: =SUM(F128:F136) -> 0 | G137: =SUM(G128:G136) -> 0 | H137: =SUM(H128:H136) -> 0 | I137: =SUM(I128:I136) -> 0 | J137: =SUM(J128:J136) -> 0 | L137: =SUM(L128:L136) -> 0
A138: =A120 -> 2 | B138: 1 | C138: Итого за день: | F138: =F127+F137 -> 610 | G138: =G127+G137 -> 12.65 | H138: =H127+H137 -> 12.58 | I138: =I127+I137 -> 72.77 | J138: =J127+J137 -> 485.3 | L138: =L127+L137 -> 64.19
A139: 2 | B139: 3 | C139: Завтрак | D139: гор.блюдо | E139: Котлеты рыбные, каша гречневая рассыпчатая с маслом | F139: 250 | G139: 10.3 | H139: 12.1 | I139: 4.2 | J139: 149.3 | K139: 212 | L139: 64.19
D141: гор.напиток | E141: Чай с лимоном | F141: 200 | G141: 4 | H141: 3 | I141: 22 | J141: 105 | K141: 382
D142: хлеб | E142: Хлеб пшеничный/ржаной | F142: 50 | G142: 2.5 | H142: 0.13 | I142: 18.9 | J142: 88.5 | K142: 573/574
D143: закуска | E143: Салат из свеклы отварной | F143: 60 | G143: 0.48 | H143: 0.48 | I143: 11.76 | J143: 53.28 | K143: пр
D146: итого | F146: =SUM(F139:F145) -> 560 | G146: =SUM(G139:G145) -> 17.28 | H146: =SUM(H139:H145) -> 15.71 | I146: =SUM(I139:I145) -> 56.86 | J146: =SUM(J139:J145) -> 396.08 | L146: =SUM(L139:L145) -> 64.19
A147: =A139 -> 2 | B147: =B139 -> 3 | C147: Обед | D147: закуска
D148: 1 блюдо
D149: 2 блюдо
D150: гарнир
D151: напиток
D152: хлеб бел.
D153: хлеб черн.
D156: итого | F156: =SUM(F147:F155) -> 0 | G156: =SUM(G147:G155) -> 0 | H156: =SUM(H147:H155) -> 0 | I156: =SUM(I147:I155) -> 0 | J156: =SUM(J147:J155) -> 0 | L156: =SUM(L147:L155) -> 0
A157: =A139 -> 2 | B157: 2 | C157: Итого за день: | F157: =F146+F156 -> 560 | G157: =G146+G156 -> 17.28 | H157: =H146+H156 -> 15.71 | I157: =I146+I156 -> 56.86 | J157: =J146+J156 -> 396.08 | L157: =L146+L156 -> 64.19
A158: 2 | B158: 4 | C158: Завтрак | D158: гор.блюдо | E158: Фрикадельки в соусе из говядины, макаронные изделия отварные с маслом | F158: 200 | G158: 14 | H158: 16.8 | I158: 53.8 | J158: 421.5 | K158: 173 | L158: 64.19
D160: гор.напиток | E160: Кофейный напиток с молоком | F160: 200 | G160: 0.2 | I160: 9 | J160: 38 | K160: 377
D161: хлеб | E161: Хлеб пшеничный/ржаной | F161: 50 | G161: 2.5 | H161: 0.13 | I161: 18.9 | J161: 88.5 | K161: 573/574
D162: фрукты | E162: Яблоко | F162: 100
D165: итого | F165: =SUM(F158:F164) -> 550 | G165: =SUM(G158:G164) -> 16.7 | H165: =SUM(H158:H164) -> 16.93 | I165: =SUM(I158:I164) -> 81.7 | J165: =SUM(J158:J164) -> 548 | L165: =SUM(L158:L164) -> 64.19
A166: =A158 -> 2 | B166: =B158 -> 4 | C166: Обед | D166: закуска
D167: 1 блюдо
D168: 2 блюдо
D169: гарнир
D170: напиток
D171: хлеб бел.
D172: хлеб черн.
D175: итого | F175: =SUM(F166:F174) -> 0 | G175: =SUM(G166:G174) -> 0 | H175: =SUM(H166:H174) -> 0 | I175: =SUM(I166:I174) -> 0 | J175: =SUM(J166:J174) -> 0 | L175: =SUM(L166:L174) -> 0
A176: =A158 -> 2 | B176: 3 | C176: Итого за день: | F176: =F165+F175 -> 550 | G176: =G165+G175 -> 16.7 | H176: =H165+H175 -> 16.93 | I176: =I165+I175 -> 81.7 | J176: =J165+J175 -> 548 | L176: =L165+L175 -> 64.19
A177: 2 | B177: 5 | C177: Завтрак | D177: гор.блюдо | E177: Котлеты из мяса птицы, рис отварной | F177: 250 | G177: 15.7 | H177: 14.4 | I177: 50.1 | J177: 379.4 | K177: 279/422/202 | L177: 64.19
D179: гор.напиток | E179: кофейный напиток с молоком | F179: 200 | G179: 0.2 | I179: 9.1 | J179: 36 | K179: 461
D180: хлеб | E180: Хлеб пшеничный | F180: 50 | G180: 1.5 | H180: 0.13 | I180: 9.7 | J180: 46.2 | K180: 573
D181: закуска | E181: свекла отварная | F181: 60
D184: итого | F184: =SUM(F177:F183) -> 560 | G184: =SUM(G177:G183) -> 17.4 | H184: =SUM(H177:H183) -> 14.53 | I184: =SUM(I177:I183) -> 68.9 | J184: =SUM(J177:J183) -> 461.6 | L184: =SUM(L177:L183) -> 64.19
A185: =A177 -> 2 | B185: =B177 -> 5 | C185: Обед | D185: закуска
D186: 1 блюдо
D187: 2 блюдо
D188: гарнир
D189: напиток
D190: хлеб бел.
D191: хлеб черн.
D194: итого | F194: =SUM(F185:F193) -> 0 | G194: =SUM(G185:G193) -> 0 | H194: =SUM(H185:H193) -> 0 | I194: =SUM(I185:I193) -> 0 | J194: =SUM(J185:J193) -> 0 | L194: =SUM(L185:L193) -> 0
A195: =A177 -> 2 | B195: 4 | C195: Итого за день: | F195: =F184+F194 -> 560 | G195: =G184+G194 -> 17.4 | H195: =H184+H194 -> 14.53 | I195: =I184+I194 -> 68.9 | J195: =J184+J194 -> 461.6
C197: Среднее значение за период: | F197: =(F24+F43+F62+F81+F100+F119+F138+F157+F176+F195)/(IF(F24=0, 0, 1)+IF(F43=0, 0, 1)+IF(F62=0, 0, 1)+IF(F81=0, 0, 1)+IF(F100=0, 0, 1)+IF(F119=0, 0, 1)+IF(F138=0, 0, 1)+IF(F157=0, 0, 1)+IF(F176=0, 0, 1)+IF(F195=0, 0, 1)) -> 579 | G197: =(G24+G43+G62+G81+G100+G119+G138+G157+G176+G195)/(IF(G24=0, 0, 1)+IF(G43=0, 0, 1)+IF(G62=0, 0, 1)+IF(G81=0, 0, 1)+IF(G100=0, 0, 1)+IF(G119=0, 0, 1)+IF(G138=0, 0, 1)+IF(G157=0, 0, 1)+IF(G176=0, 0, 1)+IF(G195=0, 0, 1)) -> 16.755 | H197: =(H24+H43+H62+H81+H100+H119+H138+H157+H176+H195)/(IF(H24=0, 0, 1)+IF(H43=0, 0, 1)+IF(H62=0, 0, 1)+IF(H81=0, 0, 1)+IF(H100=0, 0, 1)+IF(H119=0, 0, 1)+IF(H138=0, 0, 1)+IF(H157=0, 0, 1)+IF(H176=0, 0, 1)+IF(H195=0, 0, 1)) -> 15.04 | I197: =(I24+I43+I62+I81+I100+I119+I138+I157+I176+I195)/(IF(I24=0, 0, 1)+IF(I43=0, 0, 1)+IF(I62=0, 0, 1)+IF(I81=0, 0, 1)+IF(I100=0, 0, 1)+IF(I119=0, 0, 1)+IF(I138=0, 0, 1)+IF(I157=0, 0, 1)+IF(I176=0, 0, 1)+IF(I195=0, 0, 1)) -> 74.5854 | J197: =(J24+J43+J62+J81+J100+J119+J138+J157+J176+J195)/(IF(J24=0, 0, 1)+IF(J43=0, 0, 1)+IF(J62=0, 0, 1)+IF(J81=0, 0, 1)+IF(J100=0, 0, 1)+IF(J119=0, 0, 1)+IF(J138=0, 0, 1)+IF(J157=0, 0, 1)+IF(J176=0, 0, 1)+IF(J195=0, 0, 1)) -> 482.849 | L197: 64.19
